[Event "*** Titled Tuesday 3|2 Blitz"]
[Site "Chess.com"]
[Date "2017.06.06"]
[Round "3"]
[White "AdrianaNikolova"]
[Black "djano"]
[Result "1-0"]
[WhiteElo "2330"]
[BlackElo "2346"]
[TimeControl "180+2"]
[EndTime "14:27:45 PDT"]
[Termination "AdrianaNikolova won by resignation"]

1. e4 {[%clk 0:03:02]} 1... e6 {[%clk 0:03:00.3]} 2. d4 {[%clk 0:03:01.8]} 2...
d5 {[%clk 0:03:01.3]} 3. Nd2 {[%clk 0:03:03.1]} 3... dxe4 {[%clk 0:03:02]} 4.
Nxe4 {[%clk 0:03:05]} 4... Nd7 {[%clk 0:03:02.9]} 5. Nf3 {[%clk 0:03:01.9]} 5...
Ngf6 {[%clk 0:03:03.9]} 6. Bd3 {[%clk 0:02:59.4]} 6... c5 {[%clk 0:03:03.1]} 7.
c3 {[%clk 0:02:57.7]} 7... cxd4 {[%clk 0:03:01.8]} 8. Nxd4 {[%clk 0:02:59.6]}
8... Nxe4 {[%clk 0:03:01.1]} 9. Bxe4 {[%clk 0:03:00]} 9... Bd6 {[%clk
0:02:40.7]} 10. Qe2 {[%clk 0:02:53.5]} 10... O-O {[%clk 0:02:38.6]} 11. O-O
{[%clk 0:02:43.8]} 11... a6 {[%clk 0:02:21.8]} 12. a4 {[%clk 0:02:41]} 12... Qc7
{[%clk 0:02:21.1]} 13. Nf3 {[%clk 0:02:37]} 13... Nf6 {[%clk 0:02:16.7]} 14. Bc2
{[%clk 0:02:36.9]} 14... Bd7 {[%clk 0:02:05.6]} 15. Bg5 {[%clk 0:02:33.8]} 15...
Bc6 {[%clk 0:01:53.4]} 16. Rad1 {[%clk 0:02:27.6]} 16... Rfd8 {[%clk 0:01:49.8]}
17. h3 {[%clk 0:02:24.8]} 17... Bf4 {[%clk 0:01:43.9]} 18. Bxf6 {[%clk
0:02:23.4]} 18... gxf6 {[%clk 0:01:44.4]} 19. Nd4 {[%clk 0:02:24.5]} 19... f5
{[%clk 0:01:39.4]} 20. Qh5 {[%clk 0:02:05.2]} 20... Be4 {[%clk 0:01:19.8]} 21.
Bxe4 {[%clk 0:01:43.5]} 21... fxe4 {[%clk 0:01:21.7]} 22. Qg4+ {[%clk 0:01:44]}
22... Kh8 {[%clk 0:01:20.7]} 23. g3 {[%clk 0:01:45.3]} 23... Rg8 {[%clk
0:01:18.1]} 24. Qh4 {[%clk 0:01:36.9]} 24... Bxg3 {[%clk 0:01:16.5]} 25. fxg3
{[%clk 0:01:36.1]} 25... Rxg3+ {[%clk 0:01:04.2]} 26. Kh1 {[%clk 0:01:36.6]}
26... Rag8 {[%clk 0:00:55.8]} 27. Ne2 {[%clk 0:01:05.3]} 27... Qe7 {[%clk
0:00:44.3]} 28. Rf4 {[%clk 0:00:17.4]} 28... Qxh4 {[%clk 0:00:37.7]} 29. Rxh4
{[%clk 0:00:19.3]} 29... Rd3 {[%clk 0:00:39.1]} 30. Rf1 {[%clk 0:00:17.4]} 30...
f5 {[%clk 0:00:39.9]} 31. Nd4 {[%clk 0:00:16.4]} 31... Rg6 {[%clk 0:00:36.8]}
32. Rg1 {[%clk 0:00:15.8]} 32... Rxg1+ {[%clk 0:00:32.7]} 33. Kxg1 {[%clk
0:00:17.7]} 33... Rd1+ {[%clk 0:00:34.2]} 34. Kf2 {[%clk 0:00:18.1]} 34... Rd2+
{[%clk 0:00:35.8]} 35. Ke3 {[%clk 0:00:18.6]} 35... Rxb2 {[%clk 0:00:35.3]} 36.
Nxe6 {[%clk 0:00:19.2]} 36... Rc2 {[%clk 0:00:34.5]} 37. Kd4 {[%clk 0:00:19.3]}
37... Rd2+ {[%clk 0:00:35.5]} 38. Ke5 {[%clk 0:00:15]} 38... e3 {[%clk
0:00:36.7]} 39. Kxf5 {[%clk 0:00:16.3]} 39... Rd5+ {[%clk 0:00:33.4]} 40. Kf6
{[%clk 0:00:15.6]} 40... Rd2 {[%clk 0:00:23.9]} 41. Rc4 {[%clk 0:00:14.8]} 41...
h5 {[%clk 0:00:18.3]} 42. Kg6 {[%clk 0:00:13.1]} 42... Rg2+ {[%clk 0:00:16.3]}
43. Kh6 {[%clk 0:00:13.3]} 43... Kg8 {[%clk 0:00:17.6]} 44. Re4 {[%clk
0:00:12.2]} 44... Rg3 {[%clk 0:00:17.2]} 45. Ng5 {[%clk 0:00:11.5]} 45... Kf8
{[%clk 0:00:14.2]} 46. Kxh5 {[%clk 0:00:10.7]} 46... b5 {[%clk 0:00:14.1]} 47.
axb5 {[%clk 0:00:10.1]} 47... axb5 {[%clk 0:00:16]} 48. Kh4 {[%clk 0:00:11.7]}
48... Rg1 {[%clk 0:00:15.9]} 49. Rxe3 {[%clk 0:00:12.7]} 49... Kg7 {[%clk
0:00:16.3]} 50. Ne6+ {[%clk 0:00:13.4]} 50... Kf6 {[%clk 0:00:17.4]} 51. Nd4
{[%clk 0:00:15.3]} 51... Rb1 {[%clk 0:00:14.9]} 52. Re6+ {[%clk 0:00:15.6]}
52... Kf7 {[%clk 0:00:15.7]} 53. Rb6 {[%clk 0:00:17.1]} 1-0

[Event "*** Titled Tuesday 3|2 Blitz"]
[Site "Chess.com"]
[Date "2017.06.06"]
[Round "3"]
[White "Batica1984"]
[Black "Illingworth"]
[Result "0-1"]
[WhiteElo "2539"]
[BlackElo "2712"]
[TimeControl "180+2"]
[EndTime "14:27:47 PDT"]
[Termination "Illingworth won by resignation"]

1. e4 {[%clk 0:02:54]} 1... c6 {[%clk 0:03:00.4]} 2. d4 {[%clk 0:02:54.5]} 2...
d5 {[%clk 0:03:02.3]} 3. e5 {[%clk 0:02:55.3]} 3... Bf5 {[%clk 0:03:03.1]} 4.
Nf3 {[%clk 0:02:54.8]} 4... e6 {[%clk 0:03:04.2]} 5. Be2 {[%clk 0:02:55.7]} 5...
Nd7 {[%clk 0:03:05.1]} 6. O-O {[%clk 0:02:55.3]} 6... Bg6 {[%clk 0:03:05.9]} 7.
c3 {[%clk 0:02:55]} 7... Nh6 {[%clk 0:03:06]} 8. Na3 {[%clk 0:02:55.3]} 8... Rc8
{[%clk 0:03:03.9]} 9. Nc2 {[%clk 0:02:56]} 9... c5 {[%clk 0:03:04.7]} 10. Nce1
{[%clk 0:02:36.9]} 10... Nf5 {[%clk 0:02:41.9]} 11. h3 {[%clk 0:02:18.6]} 11...
Be7 {[%clk 0:02:36.1]} 12. Nd3 {[%clk 0:02:18.6]} 12... O-O {[%clk 0:02:19.5]}
13. Nf4 {[%clk 0:02:19.3]} 13... cxd4 {[%clk 0:02:19.7]} 14. cxd4 {[%clk
0:02:19.8]} 14... Qb6 {[%clk 0:02:20]} 15. g3 {[%clk 0:02:11.4]} 15... Nb8
{[%clk 0:01:55.3]} 16. h4 {[%clk 0:02:09.5]} 16... h6 {[%clk 0:01:52.3]} 17.
Nxg6 {[%clk 0:02:06.5]} 17... fxg6 {[%clk 0:01:54.2]} 18. Rb1 {[%clk 0:01:26.7]}
18... Nc6 {[%clk 0:01:51.9]} 19. Be3 {[%clk 0:01:27.4]} 19... Na5 {[%clk
0:01:43.8]} 20. b3 {[%clk 0:01:22.5]} 20... Nc6 {[%clk 0:01:18.6]} 21. Kg2
{[%clk 0:01:20.2]} 21... a5 {[%clk 0:01:18.4]} 22. Rh1 {[%clk 0:01:03.4]} 22...
Ba3 {[%clk 0:01:10.9]} 23. g4 {[%clk 0:01:01.9]} 23... Nfe7 {[%clk 0:01:10.4]}
24. h5 {[%clk 0:00:57.6]} 24... g5 {[%clk 0:00:57.4]} 25. Rf1 {[%clk 0:00:54.8]}
25... Nb4 {[%clk 0:00:55.9]} 26. Ne1 {[%clk 0:00:55.4]} 26... Nxa2 {[%clk
0:00:54.5]} 27. Ra1 {[%clk 0:00:44.1]} 27... Nc3 {[%clk 0:00:53.5]} 28. Qd3
{[%clk 0:00:44.1]} 28... Bb2 {[%clk 0:00:47.8]} 29. Rd1 {[%clk 0:00:37.5]} 29...
Nxd1 {[%clk 0:00:47.4]} 30. Qxd1 {[%clk 0:00:38]} 30... Nc6 {[%clk 0:00:44.7]}
31. Nc2 {[%clk 0:00:38.2]} 31... Nb4 {[%clk 0:00:45.1]} 32. Nxb4 {[%clk
0:00:38.9]} 32... Qxb4 {[%clk 0:00:45.6]} 33. Bd3 {[%clk 0:00:40]} 33... Rc3
{[%clk 0:00:44.5]} 34. Bb1 {[%clk 0:00:34.3]} 34... Qxb3 {[%clk 0:00:40.9]} 35.
Qe2 {[%clk 0:00:35.3]} 35... a4 {[%clk 0:00:37.1]} 36. Bd2 {[%clk 0:00:20.8]}
36... Rcf3 {[%clk 0:00:37.2]} 37. Be3 {[%clk 0:00:20.7]} 37... a3 {[%clk
0:00:37.3]} 38. Bc2 {[%clk 0:00:21]} 38... Qc4 {[%clk 0:00:33]} 39. Bd3 {[%clk
0:00:22]} 39... Qb3 {[%clk 0:00:32.7]} 40. Bc2 {[%clk 0:00:22.9]} 40... Qb4
{[%clk 0:00:32.6]} 41. Qd3 {[%clk 0:00:22.6]} 41... a2 {[%clk 0:00:24.2]} 42.
Qh7+ {[%clk 0:00:23.1]} 42... Kf7 {[%clk 0:00:25.1]} 43. Bg6+ {[%clk 0:00:24.6]}
43... Ke7 {[%clk 0:00:25.8]} 44. Qxg7+ {[%clk 0:00:25.7]} 44... Kd8 {[%clk
0:00:23.9]} 45. Qxh6 {[%clk 0:00:25.1]} 45... Rxe3 {[%clk 0:00:22.5]} 46. Qxg5+
{[%clk 0:00:25.2]} 46... Kd7 {[%clk 0:00:22]} 47. Qxe3 {[%clk 0:00:26.3]} 47...
Bxd4 {[%clk 0:00:22.7]} 48. Qh6 {[%clk 0:00:22.8]} 48... a1=Q {[%clk 0:00:22.2]}
49. Rxa1 {[%clk 0:00:22.4]} 49... Rxf2+ {[%clk 0:00:22.4]} 50. Kg3 {[%clk
0:00:22.8]} 50... Qc3+ {[%clk 0:00:22.7]} 51. Kh4 {[%clk 0:00:23.9]} 51... Rh2+
{[%clk 0:00:23.3]} 52. Kg5 {[%clk 0:00:22.8]} 52... Qe3+ {[%clk 0:00:23.8]} 53.
Kf6 {[%clk 0:00:24]} 53... Qxh6 {[%clk 0:00:24.2]} 0-1

[Event "*** Titled Tuesday 3|2 Blitz"]
[Site "Chess.com"]
[Date "2017.06.06"]
[Round "3"]
[White "NTBT_DHS"]
[Black "wonderfultime"]
[Result "0-1"]
[WhiteElo "2442"]
[BlackElo "2648"]
[TimeControl "180+2"]
[EndTime "14:28:03 PDT"]
[Termination "wonderfultime won by resignation"]

1. d4 {[%clk 0:02:56.9]} 1... Nf6 {[%clk 0:02:59.4]} 2. c4 {[%clk 0:02:57.7]}
2... e6 {[%clk 0:03:00.4]} 3. Nf3 {[%clk 0:02:57.9]} 3... d5 {[%clk 0:03:01.7]}
4. g3 {[%clk 0:02:59.1]} 4... Bb4+ {[%clk 0:02:55.3]} 5. Bd2 {[%clk 0:02:58.6]}
5... Be7 {[%clk 0:02:56.7]} 6. Bg2 {[%clk 0:02:59.1]} 6... c6 {[%clk 0:02:57.9]}
7. O-O {[%clk 0:03:00.3]} 7... O-O {[%clk 0:02:59.3]} 8. Qc2 {[%clk 0:03:01.9]}
8... b6 {[%clk 0:03:00.7]} 9. Bf4 {[%clk 0:03:01.2]} 9... Nbd7 {[%clk
0:03:00.1]} 10. Nc3 {[%clk 0:02:31.2]} 10... Ba6 {[%clk 0:02:57.8]} 11. cxd5
{[%clk 0:02:27.3]} 11... cxd5 {[%clk 0:02:57.7]} 12. Qa4 {[%clk 0:02:25.4]}
12... Bb7 {[%clk 0:02:56.8]} 13. Rfc1 {[%clk 0:02:25.5]} 13... a6 {[%clk
0:02:57.9]} 14. Qb3 {[%clk 0:02:22.7]} 14... Rc8 {[%clk 0:02:53.2]} 15. a4
{[%clk 0:02:10]} 15... Rc4 {[%clk 0:02:53.2]} 16. Rc2 {[%clk 0:01:53.3]} 16...
Qa8 {[%clk 0:02:41.1]} 17. Rac1 {[%clk 0:01:52.1]} 17... Rfc8 {[%clk 0:02:40.9]}
18. Qa2 {[%clk 0:01:49.8]} 18... h6 {[%clk 0:02:20.9]} 19. h4 {[%clk 0:01:40.5]}
19... Ne4 {[%clk 0:01:58.7]} 20. Qb3 {[%clk 0:01:12.6]} 20... Nef6 {[%clk
0:01:47]} 21. e3 {[%clk 0:00:54.4]} 21... Re8 {[%clk 0:00:46.6]} 22. Na2 {[%clk
0:00:33.2]} 22... Ne4 {[%clk 0:00:37.1]} 23. Bf1 {[%clk 0:00:31.6]} 23... Ndc5
{[%clk 0:00:26.3]} 24. dxc5 {[%clk 0:00:28.5]} 24... Nxc5 {[%clk 0:00:28.2]} 25.
Qa3 {[%clk 0:00:25.6]} 25... Rxa4 {[%clk 0:00:29.1]} 26. Qc3 {[%clk 0:00:21.1]}
26... Rxa2 {[%clk 0:00:30.3]} 27. b4 {[%clk 0:00:20.6]} 27... Rxc2 {[%clk
0:00:30.8]} 28. Rxc2 {[%clk 0:00:21.7]} 28... Ne4 {[%clk 0:00:28.5]} 29. Qd4
{[%clk 0:00:23.1]} 29... f6 {[%clk 0:00:23.5]} 30. Qxb6 {[%clk 0:00:23.2]} 30...
Bd8 {[%clk 0:00:21.3]} 31. Bc7 {[%clk 0:00:19.7]} 31... Qc8 {[%clk 0:00:10.7]}
32. Nd4 {[%clk 0:00:18.3]} 32... e5 {[%clk 0:00:10.3]} 33. Bxd8 {[%clk
0:00:19.4]} 33... Qxd8 {[%clk 0:00:11.9]} 34. Qxd8 {[%clk 0:00:18]} 34... Rxd8
{[%clk 0:00:13.8]} 35. Nf5 {[%clk 0:00:18.4]} 35... Rd7 {[%clk 0:00:12.1]} 36.
Bh3 {[%clk 0:00:20]} 36... Kf8 {[%clk 0:00:08.1]} 37. Nxh6 {[%clk 0:00:17.9]}
37... Rd8 {[%clk 0:00:09.4]} 38. Nf5 {[%clk 0:00:19]} 38... Rc8 {[%clk
0:00:10.7]} 39. Rxc8+ {[%clk 0:00:19.1]} 39... Bxc8 {[%clk 0:00:12.6]} 40. Kg2
{[%clk 0:00:20.1]} 40... Nc3 {[%clk 0:00:13.2]} 41. h5 {[%clk 0:00:19.9]} 41...
Na2 {[%clk 0:00:12.9]} 42. e4 {[%clk 0:00:16.8]} 42... Nxb4 {[%clk 0:00:12.1]}
43. exd5 {[%clk 0:00:17.2]} 43... Nxd5 {[%clk 0:00:14]} 44. Bg4 {[%clk
0:00:15.2]} 44... a5 {[%clk 0:00:14.9]} 45. Kf3 {[%clk 0:00:15]} 45... a4 {[%clk
0:00:15.8]} 46. Ke4 {[%clk 0:00:16.4]} 46... a3 {[%clk 0:00:16.5]} 47. h6 {[%clk
0:00:15]} 47... gxh6 {[%clk 0:00:17.3]} 48. Kxd5 {[%clk 0:00:13.3]} 48... a2
{[%clk 0:00:18.3]} 49. Ne3 {[%clk 0:00:14.9]} 49... a1=Q {[%clk 0:00:18.4]} 50.
Bxc8 {[%clk 0:00:15.6]} 50... Qa8+ {[%clk 0:00:19.5]} 51. Ke6 {[%clk 0:00:16.1]}
51... Qxc8+ {[%clk 0:00:20.7]} 52. Kxf6 {[%clk 0:00:18]} 52... Qe8 {[%clk
0:00:20.9]} 53. Nf5 {[%clk 0:00:17.1]} 53... h5 {[%clk 0:00:21.4]} 54. f3 {[%clk
0:00:17.9]} 54... Qc6+ {[%clk 0:00:22.3]} 55. Kxe5 {[%clk 0:00:18]} 55... Qxf3
{[%clk 0:00:23.8]} 56. Kf6 {[%clk 0:00:19.2]} 56... Qg4 {[%clk 0:00:22.4]} 57.
Ke6 {[%clk 0:00:20.5]} 57... Qg5 {[%clk 0:00:22.5]} 58. Ke5 {[%clk 0:00:18.8]}
58... Kf7 {[%clk 0:00:23.7]} 59. Ke4 {[%clk 0:00:20.1]} 59... Kf6 {[%clk
0:00:24.8]} 0-1

[Event "*** Titled Tuesday 3|2 Blitz"]
[Site "Chess.com"]
[Date "2017.06.06"]
[Round "3"]
[White "Quiet_Desperation"]
[Black "robbykevlishvili"]
[Result "1/2-1/2"]
[WhiteElo "1954"]
[BlackElo "2089"]
[TimeControl "180+2"]
[EndTime "14:28:03 PDT"]
[Termination "Game drawn - insufficient material"]

1. e4 {[%clk 0:03:01.9]} 1... c5 {[%clk 0:03:00.1]} 2. Nf3 {[%clk 0:03:02.9]}
2... d6 {[%clk 0:03:00.8]} 3. d4 {[%clk 0:03:04.3]} 3... cxd4 {[%clk 0:03:01.8]}
4. Nxd4 {[%clk 0:03:06]} 4... Nf6 {[%clk 0:03:02.7]} 5. Nc3 {[%clk 0:03:07.6]}
5... a6 {[%clk 0:03:03.8]} 6. Be3 {[%clk 0:03:09]} 6... e6 {[%clk 0:03:03.8]} 7.
f3 {[%clk 0:03:09.9]} 7... b5 {[%clk 0:03:03.3]} 8. Qd2 {[%clk 0:03:11.3]} 8...
Bb7 {[%clk 0:03:02.6]} 9. O-O-O {[%clk 0:03:12.3]} 9... Nbd7 {[%clk 0:03:03.2]}
10. g4 {[%clk 0:03:13.3]} 10... Rc8 {[%clk 0:03:03.2]} 11. Bd3 {[%clk
0:03:10.2]} 11... Nb6 {[%clk 0:02:54]} 12. Kb1 {[%clk 0:03:11.1]} 12... Nfd7
{[%clk 0:02:54.2]} 13. g5 {[%clk 0:03:11.2]} 13... Ne5 {[%clk 0:02:53.8]} 14. b3
{[%clk 0:03:12]} 14... Be7 {[%clk 0:02:47.5]} 15. h4 {[%clk 0:03:11.9]} 15...
O-O {[%clk 0:02:46.8]} 16. h5 {[%clk 0:03:12.7]} 16... Qd7 {[%clk 0:02:42.2]}
17. g6 {[%clk 0:03:13.2]} 17... fxg6 {[%clk 0:02:40.6]} 18. hxg6 {[%clk
0:03:14.1]} 18... Nxg6 {[%clk 0:02:42.5]} 19. Rdg1 {[%clk 0:03:14.1]} 19... b4
{[%clk 0:02:38.9]} 20. Qh2 {[%clk 0:03:04.5]} 20... Nh4 {[%clk 0:02:35.1]} 21.
Nce2 {[%clk 0:02:47.8]} 21... Rf7 {[%clk 0:02:10.6]} 22. Bg5 {[%clk 0:02:34.3]}
22... Bxg5 {[%clk 0:02:06.9]} 23. Rxg5 {[%clk 0:02:34]} 23... e5 {[%clk
0:02:07.4]} 24. Qxh4 {[%clk 0:02:32.1]} 24... exd4 {[%clk 0:02:03.5]} 25. Qxh7+
{[%clk 0:02:31.8]} 25... Kf8 {[%clk 0:02:04.2]} 26. Rhg1 {[%clk 0:02:19.5]}
26... Ke7 {[%clk 0:01:43.1]} 27. Rxg7 {[%clk 0:02:16.5]} 27... Rf8 {[%clk
0:01:43.6]} 28. Nxd4 {[%clk 0:02:11.9]} 28... Kd8 {[%clk 0:01:42.5]} 29. Nf5
{[%clk 0:02:04.6]} 29... Nc8 {[%clk 0:01:24]} 30. Rxf7 {[%clk 0:01:41.2]} 30...
Rxf7 {[%clk 0:01:22.8]} 31. Rg7 {[%clk 0:01:34.4]} 31... Rxg7 {[%clk 0:01:21.2]}
32. Qxg7 {[%clk 0:01:35.6]} 32... Qxg7 {[%clk 0:01:21.4]} 33. Nxg7 {[%clk
0:01:36.9]} 33... Ne7 {[%clk 0:01:22.5]} 34. Kb2 {[%clk 0:01:31.2]} 34... Ng6
{[%clk 0:01:22]} 35. c3 {[%clk 0:01:25.2]} 35... a5 {[%clk 0:01:22.7]} 36. cxb4
{[%clk 0:01:23.1]} 36... axb4 {[%clk 0:01:24.6]} 37. Nf5 {[%clk 0:01:19.4]}
37... d5 {[%clk 0:01:21.3]} 38. Nd6 {[%clk 0:01:14.1]} 38... Ba8 {[%clk
0:01:22]} 39. exd5 {[%clk 0:01:11.1]} 39... Nf4 {[%clk 0:01:21.1]} 40. Be4
{[%clk 0:01:11.9]} 40... Bxd5 {[%clk 0:01:18.3]} 41. Bxd5 {[%clk 0:01:12.4]}
41... Nxd5 {[%clk 0:01:20.2]} 42. Ne4 {[%clk 0:01:04]} 42... Kc7 {[%clk
0:01:18.9]} 43. a3 {[%clk 0:01:04.1]} 43... bxa3+ {[%clk 0:01:18.4]} 44. Kxa3
{[%clk 0:01:05.4]} 44... Kc6 {[%clk 0:01:19.1]} 45. Ka4 {[%clk 0:01:03.2]} 45...
Kb6 {[%clk 0:01:18.3]} 46. b4 {[%clk 0:01:03.2]} 46... Ka6 {[%clk 0:01:18.2]}
47. Nc5+ {[%clk 0:01:02.5]} 47... Kb6 {[%clk 0:01:19.1]} 48. Nd7+ {[%clk
0:01:02]} 48... Kc6 {[%clk 0:01:18.2]} 49. Ne5+ {[%clk 0:01:03.1]} 49... Kb6
{[%clk 0:01:18.8]} 50. Nd3 {[%clk 0:00:58.9]} 50... Kc6 {[%clk 0:01:15]} 51. f4
{[%clk 0:00:58]} 51... Kb6 {[%clk 0:01:15.2]} 52. f5 {[%clk 0:00:56]} 52... Ka6
{[%clk 0:01:15.5]} 53. Ne5 {[%clk 0:00:48.8]} 53... Kb6 {[%clk 0:01:11.2]} 54.
Ng4 {[%clk 0:00:48.9]} 54... Nc3+ {[%clk 0:01:07.8]} 55. Kb3 {[%clk 0:00:47.9]}
55... Nb5 {[%clk 0:01:08.9]} 56. f6 {[%clk 0:00:44.3]} 56... Kc7 {[%clk
0:01:06.8]} 57. Kc4 {[%clk 0:00:43.5]} 57... Nd6+ {[%clk 0:01:06.8]} 58. Kd5
{[%clk 0:00:43.9]} 58... Nf7 {[%clk 0:01:03.8]} 59. Ke6 {[%clk 0:00:40.9]} 59...
Ng5+ {[%clk 0:01:03.7]} 60. Ke7 {[%clk 0:00:42.1]} 60... Kb6 {[%clk 0:01:03.1]}
61. Ne3 {[%clk 0:00:37.9]} 61... Kb5 {[%clk 0:01:02]} 62. Nd5 {[%clk 0:00:39.2]}
62... Kc4 {[%clk 0:01:02.3]} 63. Kd6 {[%clk 0:00:25.1]} 63... Nf7+ {[%clk
0:01:01]} 64. Ke6 {[%clk 0:00:25.6]} 64... Ng5+ {[%clk 0:01:01]} 65. Kf5 {[%clk
0:00:25.9]} 65... Nf7 {[%clk 0:00:57.1]} 66. Ke6 {[%clk 0:00:22.4]} 66... Ng5+
{[%clk 0:00:57.4]} 67. Kd6 {[%clk 0:00:19.3]} 67... Ne4+ {[%clk 0:00:57.7]} 68.
Ke5 {[%clk 0:00:17.1]} 68... Nxf6 {[%clk 0:00:59]} 69. Kxf6 {[%clk 0:00:18.4]}
69... Kxd5 {[%clk 0:00:59.6]} 70. b5 {[%clk 0:00:20.3]} 70... Kc5 {[%clk
0:01:00.5]} 71. b6 {[%clk 0:00:22.2]} 71... Kxb6 {[%clk 0:01:01.1]} 1/2-1/2

[Event "*** Titled Tuesday 3|2 Blitz"]
[Site "Chess.com"]
[Date "2017.06.06"]
[Round "3"]
[White "SabinaFoisor"]
[Black "Vice64"]
[Result "1/2-1/2"]
[WhiteElo "2257"]
[BlackElo "2319"]
[TimeControl "180+2"]
[EndTime "14:28:03 PDT"]
[Termination "Game drawn by repetition"]

1. d4 {[%clk 0:03:02]} 1... Nf6 {[%clk 0:03:00.1]} 2. Bf4 {[%clk 0:03:00.3]}
2... g6 {[%clk 0:03:00.3]} 3. Nf3 {[%clk 0:02:58.5]} 3... Bg7 {[%clk 0:03:00.7]}
4. Nbd2 {[%clk 0:02:59.3]} 4... O-O {[%clk 0:02:59.5]} 5. e4 {[%clk 0:02:59.4]}
5... d6 {[%clk 0:03:00.2]} 6. h3 {[%clk 0:02:59.4]} 6... Nbd7 {[%clk 0:02:57.3]}
7. Bc4 {[%clk 0:02:59.7]} 7... c5 {[%clk 0:02:54.2]} 8. c3 {[%clk 0:02:57.5]}
8... cxd4 {[%clk 0:02:48.6]} 9. cxd4 {[%clk 0:02:59.4]} 9... d5 {[%clk 0:02:49]}
10. exd5 {[%clk 0:02:46.1]} 10... Nb6 {[%clk 0:02:49.1]} 11. d6 {[%clk
0:02:41.2]} 11... exd6 {[%clk 0:02:45.5]} 12. Bb3 {[%clk 0:02:40]} 12... Re8+
{[%clk 0:02:42.7]} 13. Be3 {[%clk 0:02:40.3]} 13... Nbd5 {[%clk 0:02:41.5]} 14.
O-O {[%clk 0:02:32.6]} 14... Nxe3 {[%clk 0:02:37.7]} 15. fxe3 {[%clk 0:02:34.5]}
15... Rxe3 {[%clk 0:02:37.7]} 16. Ng5 {[%clk 0:02:29.4]} 16... d5 {[%clk
0:02:37.7]} 17. Rc1 {[%clk 0:02:07.1]} 17... Re7 {[%clk 0:02:27.4]} 18. Ngf3
{[%clk 0:02:00.9]} 18... Qb6 {[%clk 0:02:18.1]} 19. Kh1 {[%clk 0:01:45.6]} 19...
Bf5 {[%clk 0:02:16.9]} 20. Re1 {[%clk 0:01:31]} 20... Rxe1+ {[%clk 0:02:11.7]}
21. Qxe1 {[%clk 0:01:32.9]} 21... Re8 {[%clk 0:02:11.9]} 22. Qf2 {[%clk
0:01:26.4]} 22... h6 {[%clk 0:02:06.8]} 23. Nh4 {[%clk 0:01:02.6]} 23... Ne4
{[%clk 0:02:02.9]} 24. Nxe4 {[%clk 0:01:01.8]} 24... Bxe4 {[%clk 0:02:03.5]} 25.
Rd1 {[%clk 0:01:01.4]} 25... Qf6 {[%clk 0:01:56.4]} 26. Nf3 {[%clk 0:00:59.8]}
26... g5 {[%clk 0:01:46.8]} 27. Qg3 {[%clk 0:00:59.9]} 27... b6 {[%clk
0:01:34.8]} 28. Ne5 {[%clk 0:01:00.1]} 28... Qf5 {[%clk 0:01:29.7]} 29. Ng4
{[%clk 0:01:00.4]} 29... Qe6 {[%clk 0:01:16]} 30. Nf2 {[%clk 0:00:52.5]} 30...
f5 {[%clk 0:01:14.3]} 31. Nxe4 {[%clk 0:00:52.5]} 31... fxe4 {[%clk 0:01:11.7]}
32. Qc7 {[%clk 0:00:47.4]} 32... e3 {[%clk 0:01:05.6]} 33. Qxa7 {[%clk
0:00:47.5]} 33... e2 {[%clk 0:01:04]} 34. Re1 {[%clk 0:00:47.7]} 34... Bxd4
{[%clk 0:01:04.2]} 35. Qb7 {[%clk 0:00:46.5]} 35... Rd8 {[%clk 0:00:39.5]} 36.
Qc7 {[%clk 0:00:45.4]} 36... Rd7 {[%clk 0:00:34.9]} 37. Qc8+ {[%clk 0:00:35.6]}
37... Kg7 {[%clk 0:00:35]} 38. Rxe2 {[%clk 0:00:35.5]} 38... Qxe2 {[%clk
0:00:28.8]} 39. Qxd7+ {[%clk 0:00:36.1]} 39... Kg6 {[%clk 0:00:25.9]} 40. Qc6+
{[%clk 0:00:22.5]} 40... Kh5 {[%clk 0:00:20.9]} 41. Qc1 {[%clk 0:00:23.6]} 41...
Kh4 {[%clk 0:00:13.9]} 42. Bxd5 {[%clk 0:00:21.7]} 42... Be3 {[%clk 0:00:13.4]}
43. Qb1 {[%clk 0:00:21.7]} 43... Bf4 {[%clk 0:00:12.4]} 44. Bf3 {[%clk
0:00:21.7]} 44... Qf2 {[%clk 0:00:11.9]} 45. b4 {[%clk 0:00:21.6]} 45... Qg3
{[%clk 0:00:12]} 46. Qg1 {[%clk 0:00:22.4]} 46... h5 {[%clk 0:00:09.5]} 47. a4
{[%clk 0:00:20.7]} 47... g4 {[%clk 0:00:10.1]} 48. hxg4 {[%clk 0:00:21.2]} 48...
hxg4 {[%clk 0:00:12]} 49. Be4 {[%clk 0:00:21.7]} 49... Bd6 {[%clk 0:00:12.1]}
50. a5 {[%clk 0:00:20.5]} 50... bxa5 {[%clk 0:00:11.1]} 51. bxa5 {[%clk
0:00:21.4]} 51... Bb8 {[%clk 0:00:09.9]} 52. a6 {[%clk 0:00:22.1]} 52... Qc7
{[%clk 0:00:08.5]} 53. Qf2+ {[%clk 0:00:20.5]} 53... Kg5 {[%clk 0:00:09]} 54.
Qf5+ {[%clk 0:00:21]} 54... Kh4 {[%clk 0:00:09]} 55. Qf2+ {[%clk 0:00:21.6]}
55... Kg5 {[%clk 0:00:09.2]} 56. Qf5+ {[%clk 0:00:22.4]} 56... Kh4 {[%clk
0:00:09.7]} 57. Qf2+ {[%clk 0:00:22.8]} 57... Kg5 {[%clk 0:00:10.2]} 1/2-1/2